bitfinex/quotes_BTCUSD_20250219
["timestamp","ask_amount","ask_price","bid_price","bid_amount"]
[1739954687177,0.0004254,95954.0,95951.0,0.0028508]
[1739954687395,0.0004254,95954.0,95953.0,0.00685832]
[1739954687616,0.0004254,95954.0,95952.0,0.00685833]
[1739954687897,0.0004254,95954.0,95951.0,0.0028508]
[1739954688036,0.1567504,95954.0,95953.0,0.00685832]
[1739954688234,0.156327,95953.0,95951.0,0.0008508]
[1739954688958,0.156327,95953.0,95951.0,0.0038508]
[1739954689157,0.156327,95953.0,95951.0,0.0008508]
[1739954689905,0.156328,95952.0,95951.0,0.0008508]
[1739954690137,0.156328,95952.0,95951.0,0.0048508]
[1739954691552,0.156328,95952.0,95951.0,0.0008508]
[1739954691984,0.156328,95952.0,95951.0,0.0018508]
[1739954692186,0.156328,95952.0,95951.0,0.0008508]
[1739954692517,0.156328,95952.0,95951.0,0.0018508]
[1739954698438,0.156328,95952.0,95951.0,0.0008508]
[1739954698645,0.156328,95952.0,95951.0,0.0018508]
[1739954703666,3.196299,95952.0,95951.0,0.0018508]
[1739954703834,3.349864,95952.0,95951.0,0.0018508]
[1739954704049,2.057912,95952.0,95951.0,0.0018508]
[1739954704254,1.980685,95952.0,95951.0,0.0018508]
[1739954704458,1.863374,95952.0,95951.0,0.0018508]
[1739954705058,1.863374,95952.0,95951.0,0.0008508]
[1739954705531,1.863374,95952.0,95951.0,0.0018508]
[1739954705739,1.863374,95952.0,95951.0,0.0008508]
[1739954706148,1.863374,95952.0,95951.0,0.0018508]
[1739954707576,1.699064,95952.0,95951.0,0.0018508]
[1739954708094,1.158689,95952.0,95951.0,0.0018508]
[1739954708293,1.020983,95952.0,95951.0,0.0018508]
[1739954708462,0.156328,95952.0,95951.0,0.0018508]
[1739954716958,0.0004254,95953.0,95951.0,0.0819508]
[1739954717163,0.1567524,95953.0,95951.0,0.0819508]
[1739954717361,0.1567524,95953.0,95952.0,0.00673671]
[1739954717543,0.1567524,95953.0,95951.0,0.0819508]
[1739954719058,0.1567524,95953.0,95951.0,0.0809508]
[1739954720883,0.1567524,95953.0,95951.0,0.0819508]
[1739954722648,0.1567524,95953.0,95951.0,0.0809508]
[1739954723182,0.156328,95952.0,95951.0,0.0829508]
[1739954724083,0.156328,95952.0,95951.0,0.08768752]
[1739954724287,0.156328,95952.0,95951.0,0.0829508]
[1739954724897,0.208433,95954.0,95951.0,0.0809508]
[1739954725022,0.156328,95952.0,95951.0,0.08768752]
[1739954725227,0.156328,95952.0,95951.0,0.0809508]
[1739954726397,0.156328,95952.0,95951.0,0.0829508]
[1739954736324,0.155928,95952.0,95951.0,0.0829508]
[1739954737421,1.267455,95952.0,95951.0,0.0028508]
[1739954738058,1.267455,95952.0,95951.0,0.0008508]
[1739954738404,1.267455,95952.0,95951.0,0.0028508]
[1739954738615,1.267455,95952.0,95951.0,0.0008508]
[1739954739057,1.267455,95952.0,95951.0,0.0018508]
[1739954739385,1.267455,95952.0,95951.0,0.0008508]
[1739954739583,1.267455,95952.0,95951.0,0.0018508]
[1739954741315,1.28838568,95952.0,95951.0,0.0018508]
[1739954743521,1.03956441,95952.0,95951.0,0.0018508]
[1739954743941,1.19589241,95952.0,95951.0,0.0018508]
[1739954745352,1.19589241,95952.0,95951.0,0.0008508]
[1739954745564,0.17925868,95952.0,95951.0,0.0008508]
[1739954745774,4.17245968,95952.0,95951.0,0.0008508]
[1739954746300,4.17445968,95952.0,95951.0,0.0008508]
[1739954751166,3.98309768,95952.0,95951.0,0.0008508]
[1739954751362,3.68652168,95952.0,95951.0,0.0008508]
[1739954751740,3.66491068,95952.0,95951.0,0.0008508]
[1739954754062,2.89410568,95952.0,95951.0,0.0008508]
[1739954754761,0.15,95951.0,95938.0,0.0008508]
[1739954754963,0.306349,95939.0,95938.0,0.00092335]
[1739954755167,0.507413,95939.0,95938.0,0.00092335]
[1739954755762,0.507413,95939.0,95938.0,0.08322335]
[1739954755963,0.15,95939.0,95938.0,0.12962335]
[1739954756163,0.306349,95939.0,95938.0,0.12962335]
[1739954756344,0.306349,95939.0,95938.0,0.14163746]
[1739954756977,0.306349,95939.0,95938.0,0.12962335]
[1739954757387,0.306349,95939.0,95938.0,0.14163746]
[1739954757582,0.156349,95939.0,95938.0,0.14363746]
[1739954757810,0.156349,95939.0,95938.0,0.13162335]
[1739954758145,0.156349,95939.0,95938.0,0.14363746]
[1739954762451,0.156349,95939.0,95938.0,0.01493746]
[1739954762779,0.156349,95939.0,95938.0,0.00292335]
[1739954763254,0.156349,95939.0,95938.0,0.00227943]
[1739954764099,0.156349,95939.0,95938.0,0.00027943]
[1739954764303,0.156349,95939.0,95938.0,0.00227943]
[1739954765927,2.409664,95939.0,95938.0,0.00227943]
[1739954766469,0.306349,95939.0,95938.0,1e-08]
[1739954767212,0.306352,95937.0,95935.0,0.000851]
[1739954767412,4.299553,95937.0,95936.0,0.00090088]
[1739954767590,0.352552,95937.0,95936.0,0.00090088]
[1739954767788,4.345753,95937.0,95936.0,0.00090088]
[1739954768021,0.352552,95937.0,95936.0,0.00090088]
[1739954768554,4.346753,95937.0,95936.0,0.00090088]
[1739954768763,4.38069602,95937.0,95936.0,0.00090088]
[1739954768930,4.346753,95937.0,95936.0,0.00090088]
[1739954769715,4.408953,95937.0,95936.0,0.00090088]
[1739954770402,4.575801,95937.0,95935.0,8.8e-07]
[1739954770608,4.299555,95936.0,95935.0,8.8e-07]
[1739954770820,0.75305765,95936.0,95935.0,8.8e-07]
[1739954771660,0.650554,95936.0,95935.0,0.00100088]
[1739954772147,0.650554,95936.0,95935.0,8.8e-07]
[1739954772294,0.656554,95936.0,95935.0,0.00100088]
[1739954773105,0.332354,95936.0,95935.0,0.00100088]
[1739954773932,0.35212528,95936.0,95935.0,0.00100088]
[1739954774137,0.312354,95936.0,95935.0,0.00100088]
[1739954775672,4.305555,95936.0,95935.0,0.00100088]
[1739954778326,0.312354,95936.0,95935.0,0.00100088]
[1739954778474,4.305555,95936.0,95935.0,0.00100088]
[1739954783629,0.306373,95924.0,95923.0,0.00032826]
[1739954783785,4.299574,95924.0,95923.0,0.00032826]
[1739954783995,4.299574,95924.0,95923.0,0.0123467]
[1739954784189,4.299574,95924.0,95923.0,0.00032826]
[1739954787956,4.301574,95924.0,95923.0,0.00032826]
[1739954788828,4.38612867,95924.0,95923.0,0.00032826]
[1739954789118,0.39292767,95924.0,95923.0,0.00032826]
[1739954789446,0.308373,95924.0,95923.0,0.00032826]
[1739954789647,4.301574,95924.0,95923.0,0.00032826]
[1739954790647,4.32270607,95924.0,95923.0,0.00032826]
[1739954791052,4.23117607,95924.0,95923.0,0.00032826]
[1739954791465,3.69188307,95924.0,95923.0,0.00032826]
[1739954791667,2.93604407,95924.0,95923.0,0.00032826]
[1739954792502,2.99669864,95924.0,95923.0,0.00032826]
[1739954792701,2.93604407,95924.0,95923.0,0.00032826]
[1739954793045,2.93531321,95924.0,95923.0,0.00032826]
[1739954799622,0.32877421,95924.0,95923.0,0.00032826]
[1739954800013,4.32197521,95924.0,95923.0,0.00032826]
[1739954802273,0.306377,95922.0,95911.0,0.0004]
[1739954802489,4.299578,95922.0,95911.0,0.0004]
[1739954804787,4.300578,95922.0,95911.0,0.0004]
[1739954806860,4.40308165,95922.0,95911.0,0.0004]
[1739954810121,0.40988065,95922.0,95911.0,0.0004]
[1739954810422,4.40308165,95922.0,95911.0,0.0004]
[1739954813103,0.306393,95912.0,95911.0,0.0004]
[1739954813302,4.299594,95912.0,95911.0,0.0004]
[1739954814502,4.300594,95912.0,95911.0,0.0004]
[1739954816295,0.156398,95909.0,95908.0,0.08]
[1739954816497,4.299599,95909.0,95908.0,0.08]
[1739954818242,4.24130085,95909.0,95908.0,0.08]
[1739954818579,4.00094592,95909.0,95908.0,0.08]
[1739954818774,4.000946,95909.0,95908.0,0.08]
[1739954819202,4.003946,95909.0,95908.0,0.08]
[1739954819404,4.02471773,95909.0,95908.0,0.08]
[1739954820557,4.02171773,95909.0,95908.0,0.08]
[1739954820973,4.17471773,95909.0,95908.0,0.009336]
[1739954821173,0.306408,95903.0,95902.0,0.0454]
[1739954821381,4.150956,95903.0,95902.0,0.0454]
[1739954821582,3.668049,95903.0,95902.0,0.0454]
[1739954821785,3.68007474,95903.0,95902.0,0.0454]
[1739954822433,3.68007474,95903.0,95902.0,0.04545897]
[1739954822641,3.68107474,95903.0,95902.0,0.04545897]
[1739954823268,3.40976074,95903.0,95902.0,0.04545897]
[1739954823474,3.33437074,95903.0,95902.0,0.04545897]
[1739954823685,2.80460874,95903.0,95902.0,0.04545897]
[1739954824103,2.80460874,95903.0,95902.0,0.12335897]
[1739954824980,2.49820074,95903.0,95902.0,0.12335897]
[1739954825186,2.65460874,95903.0,95902.0,0.12335897]
[1739954825372,2.29681774,95903.0,95902.0,0.12335897]
[1739954825781,2.26474974,95903.0,95902.0,0.12335897]
[1739954825967,2.24420374,95903.0,95902.0,0.12335897]
[1739954826418,2.17721374,95903.0,95902.0,0.12335897]
[1739954829390,2.32721374,95903.0,95902.0,0.12335897]
[1739954838614,1.52453274,95903.0,95902.0,0.12335897]
[1739954838987,1.32764174,95903.0,95902.0,0.12335897]
[1739954839614,1.32764174,95903.0,95902.0,0.12421037]
[1739954840411,1.32806744,95903.0,95902.0,0.12421037]
[1739954842555,0.31985944,95903.0,95902.0,0.12421037]
[1739954842985,3.62658544,95903.0,95902.0,0.12421037]
[1739954843258,3.61158544,95903.0,95902.0,0.12421037]
[1739954843693,3.31156544,95903.0,95902.0,0.12421037]
[1739954844256,2.16140044,95903.0,95902.0,0.12421037]
[1739954844446,2.13005044,95903.0,95902.0,0.12421037]
[1739954844861,1.10857044,95903.0,95902.0,0.12421037]
[1739954846568,0.96948944,95903.0,95902.0,0.12421037]
[1739954846942,0.94246744,95903.0,95902.0,0.12421037]
[1739954847141,0.90934544,95903.0,95902.0,0.12421037]
[1739954848517,0.90934544,95903.0,95902.0,0.00091037]
[1739954851279,0.90834544,95903.0,95902.0,0.00091037]
[1739954851689,0.90934544,95903.0,95902.0,0.00091037]
[1739954852884,0.90834544,95903.0,95902.0,0.00091037]
[1739954853085,0.31885944,95903.0,95902.0,0.00091037]
[1739954853392,0.31985944,95903.0,95902.0,0.00091037]
[1739954853561,3.82672044,95903.0,95902.0,0.00091037]
[1739954853760,3.28217644,95903.0,95902.0,0.00091037]
[1739954854545,3.28017644,95903.0,95902.0,0.00091037]
[1739954855908,3.28117644,95903.0,95902.0,0.00091037]
[1739954856112,3.28017644,95903.0,95902.0,0.00091037]
[1739954856613,3.28117644,95903.0,95902.0,0.00091037]
[1739954856832,3.28017644,95903.0,95902.0,0.00091037]
[1739954857234,3.28117644,95903.0,95902.0,0.00091037]
[1739954857514,3.28017644,95903.0,95902.0,0.00091037]
[1739954857732,3.28117644,95903.0,95902.0,0.00091037]
[1739954858092,3.28117644,95903.0,95902.0,0.00047292]
[1739954860170,3.28117644,95903.0,95902.0,0.00036601]
[1739954860747,0.306422,95894.0,95893.0,0.04930786]
[1739954860949,2.304472,95894.0,95893.0,0.04974326]
[1739954862670,2.304472,95894.0,95893.0,0.0004354]
[1739954863467,2.304472,95894.0,95893.0,0.0024354]
[1739954863673,0.306422,95894.0,95893.0,0.0024354]
[1739954863853,2.347226,95894.0,95893.0,0.0024354]
[1739954864050,3.945603,95894.0,95893.0,0.0024354]
[1739954864258,3.874243,95894.0,95893.0,0.0024354]
[1739954866255,3.71310104,95894.0,95893.0,0.0024354]
[1739954866773,3.03795504,95894.0,95893.0,0.0024354]
[1739954866940,2.86708204,95894.0,95893.0,0.0024354]
[1739954870761,2.42477204,95894.0,95893.0,0.0024354]
[1739954874229,0.30170204,95894.0,95893.0,0.0024354]
[1739954874429,2.68144604,95894.0,95893.0,0.0024354]
[1739954874631,2.67944604,95894.0,95893.0,0.0024354]
[1739954876381,2.63589904,95894.0,95893.0,0.0024354]
[1739954876829,2.50470104,95894.0,95893.0,0.003287]
[1739954878181,2.49426704,95894.0,95893.0,0.003287]
[1739954878389,2.19986831,95894.0,95893.0,0.003287]
[1739954878593,0.156422,95894.0,95893.0,0.003287]
[1739954878808,2.472744,95894.0,95893.0,0.003287]
[1739954879181,2.408404,95894.0,95893.0,0.003287]
[1739954879361,2.365484,95894.0,95893.0,0.003287]
[1739954880399,2.433809,95894.0,95893.0,0.003287]
[1739954880600,2.331368,95894.0,95893.0,0.003287]
[1739954883945,2.277669,95894.0,95893.0,0.003287]
[1739954884851,0.306422,95894.0,95893.0,0.003287]
[1739954884985,2.199246,95894.0,95893.0,0.003287]
[1739954885517,0.81463,95894.0,95893.0,0.003287]
[1739954886139,0.156427,95891.0,95890.0,0.04749902]
[1739954886332,0.156427,95891.0,95890.0,0.04754251]
[1739954886741,0.306427,95891.0,95890.0,0.06450057]
[1739954887115,0.306427,95891.0,95890.0,0.04754251]
[1739954887539,0.306427,95891.0,95890.0,0.05054251]
[1739954888074,0.306427,95891.0,95890.0,0.04754251]
[1739954889495,0.306427,95891.0,95890.0,0.05054251]
[1739954889690,0.306427,95891.0,95890.0,0.04754251]
[1739954890714,0.306427,95891.0,95890.0,0.05054251]
[1739954890856,0.306427,95891.0,95890.0,0.04754251]
[1739954891059,0.306427,95891.0,95890.0,0.05054251]
[1739954892953,0.306427,95891.0,95890.0,0.04754251]
[1739954893172,0.306427,95891.0,95890.0,0.05054251]
[1739954893576,0.306427,95891.0,95890.0,0.04754251]
[1739954893734,0.306427,95891.0,95890.0,0.05054251]
[1739954894585,0.306427,95891.0,95890.0,0.04754251]
[1739954895088,0.306427,95891.0,95890.0,0.05054251]
[1739954895523,0.208567,95893.0,95890.0,0.05054251]
[1739954895683,0.148507,95892.0,95890.0,0.05054251]
[1739954896032,0.156427,95891.0,95890.0,0.05054251]
[1739954896232,0.156427,95891.0,95890.0,0.04754251]
[1739954896443,0.156427,95891.0,95890.0,0.05054251]
[1739954896768,0.156427,95891.0,95890.0,0.04754251]
[1739954897221,0.156427,95891.0,95890.0,0.04954251]
[1739954897418,0.156427,95891.0,95890.0,0.04754251]
[1739954897591,0.1504258,95894.0,95890.0,0.04754251]
[1739954898184,0.156427,95891.0,95890.0,0.04754251]
[1739954900002,0.306427,95891.0,95890.0,0.05054251]
[1739954900227,0.306427,95891.0,95890.0,0.04754251]
[1739954900572,0.306427,95891.0,95890.0,0.05054251]
[1739954900949,0.306427,95891.0,95890.0,0.04754251]
[1739954901148,0.306427,95891.0,95890.0,0.05054251]
[1739954901348,0.306427,95891.0,95890.0,0.04754251]
[1739954901554,0.306427,95891.0,95890.0,0.04839351]
[1739954901800,0.306427,95891.0,95890.0,0.05139351]
[1739954903132,0.306427,95891.0,95890.0,0.04839351]
[1739954903528,0.306427,95891.0,95890.0,0.05139351]
[1739954903728,0.306427,95891.0,95890.0,0.04839351]
[1739954904070,0.306427,95891.0,95890.0,0.05139351]
[1739954904333,0.306427,95891.0,95890.0,0.04839351]
[1739954904735,0.306427,95891.0,95890.0,0.05139351]
[1739954904943,0.306427,95891.0,95890.0,0.04839351]
[1739954906282,0.306427,95891.0,95890.0,0.05139351]
[1739954907089,0.306427,95891.0,95890.0,0.04839351]
[1739954907315,0.306427,95891.0,95890.0,0.00089449]
[1739954907511,0.306427,95891.0,95890.0,0.00389449]
[1739954907918,0.306427,95891.0,95890.0,0.00089449]
[1739954908205,0.306427,95891.0,95890.0,0.00389449]
[1739954908918,4.147845,95891.0,95890.0,0.00389449]
[1739954909467,3.561304,95891.0,95890.0,0.00089449]
[1739954909667,3.561304,95891.0,95890.0,0.00389449]
[1739954911199,3.512092,95891.0,95890.0,0.00389449]
[1739954912335,3.483874,95891.0,95890.0,0.00389449]
[1739954914108,3.399237,95891.0,95890.0,0.00389449]
[1739954914701,3.387749,95891.0,95890.0,0.00389449]
[1739954915788,3.237749,95891.0,95890.0,0.00389449]
[1739954916414,3.196746,95891.0,95890.0,0.00389449]
[1739954916587,0.156427,95891.0,95890.0,0.00389449]
[1739954916790,3.756746,95891.0,95890.0,0.00389449]
[1739954916994,3.196746,95891.0,95890.0,0.00389449]
[1739954922910,3.346746,95891.0,95890.0,0.00389449]
[1739954924123,3.346746,95891.0,95890.0,0.00089449]
[1739954924268,3.347746,95891.0,95890.0,0.00089449]
[1739954927233,3.36409395,95891.0,95890.0,0.00089449]
[1739954927409,0.32377495,95891.0,95890.0,0.00089449]
[1739954927823,4.16519295,95891.0,95890.0,0.00089449]
[1739954933122,4.148845,95891.0,95890.0,0.00089449]
[1739954934086,4.148525,95891.0,95890.0,0.00089449]
[1739954936003,4.16487302,95891.0,95890.0,0.00089449]
[1739954936541,4.16529852,95891.0,95890.0,0.00089449]
[1739954937879,0.32388052,95891.0,95890.0,0.00089449]
[1739954938077,4.16529852,95891.0,95890.0,0.00089449]
[1739954941892,4.09445552,95891.0,95890.0,0.00089449]
[1739954942124,2.98090752,95891.0,95890.0,0.00089449]
[1739954942345,2.66577752,95891.0,95890.0,0.00089449]
[1739954942549,2.49603152,95891.0,95890.0,0.00089449]
[1739954943586,2.4796835,95891.0,95890.0,0.00089449]
[1739954946604,2.49603217,95891.0,95890.0,0.00089449]
[1739954948538,0.32388117,95891.0,95890.0,0.00089449]
[1739954948897,3.80081517,95891.0,95890.0,0.00089449]
[1739954949847,3.79006017,95891.0,95890.0,0.00089449]
[1739954950262,3.59832717,95891.0,95890.0,0.00089449]
[1739954950864,3.57744317,95891.0,95890.0,0.00089449]
[1739954951611,3.34721317,95891.0,95890.0,0.00089449]
[1739954952072,0.50948217,95891.0,95890.0,0.13339449]
[1739954952302,0.32388117,95891.0,95890.0,0.13339449]
[1739954952941,0.16777417,95891.0,95890.0,0.13339449]
[1739954953153,0.01777417,95891.0,95890.0,0.15120163]
[1739954953369,0.0014255,95891.0,95890.0,0.15120163]
[1739954954740,0.0004255,95891.0,95890.0,0.15120163]
[1739954954945,0.0014255,95891.0,95890.0,0.15120163]
[1739954955459,0.3078525,95891.0,95890.0,0.15320163]
[1739954957325,0.3078525,95891.0,95890.0,0.13539449]
[1739954957765,0.32419974,95891.0,95890.0,0.13539449]
[1739954958028,0.32419974,95891.0,95890.0,0.05209449]
[1739954958262,0.32419974,95891.0,95890.0,0.00289449]
[1739954960262,3.13711874,95891.0,95890.0,0.00289449]
[1739954961607,3.10890274,95891.0,95890.0,0.00289449]
[1739954963246,3.0925555,95891.0,95890.0,0.00289449]
[1739954963857,2.784703,95891.0,95890.0,0.00289449]
[1739954964062,0.156427,95891.0,95890.0,0.00289449]
[1739954964308,3.997845,95891.0,95890.0,0.00089449]
[1739954964753,3.998845,95891.0,95890.0,0.00089449]
[1739954964984,3.997845,95891.0,95890.0,0.00089449]
[1739954965186,3.998845,95891.0,95890.0,0.00089449]
[1739954965643,3.997845,95891.0,95890.0,0.00089449]
[1739954965841,3.998845,95891.0,95890.0,0.00089449]
[1739954966379,4.01519324,95891.0,95890.0,0.00089449]
[1739954966627,4.16519324,95891.0,95890.0,0.00089449]
[1739954968504,0.32377524,95891.0,95890.0,0.00089449]
[1739954969031,4.16519324,95891.0,95890.0,0.00089449]
[1739954970754,3.68019224,95891.0,95890.0,0.00089449]
[1739954970956,1.99331224,95891.0,95890.0,0.00089449]
[1739954971173,1.82640024,95891.0,95890.0,0.00089449]
[1739954971589,1.75275424,95891.0,95890.0,0.00089449]
[1739954971796,1.74112574,95891.0,95890.0,0.00089449]
[1739954972228,1.74012574,95891.0,95890.0,0.00089449]
[1739954972447,1.71337474,95891.0,95890.0,0.00089449]
[1739954972857,1.6970265,95891.0,95890.0,0.00089449]
[1739954973865,1.6960265,95891.0,95890.0,0.00089449]
[1739954974411,1.6970265,95891.0,95890.0,0.00089449]
[1739954974542,1.6708985,95891.0,95890.0,0.00089449]
[1739954976189,1.68724612,95891.0,95890.0,0.00089449]
[1739954976995,1.68624612,95891.0,95890.0,0.00089449]
[1739954977192,1.68724612,95891.0,95890.0,0.00089449]
[1739954977395,0.81803612,95891.0,95890.0,0.00089449]
[1739954980551,0.81703612,95891.0,95890.0,0.00089449]
[1739954981497,0.81803612,95891.0,95890.0,0.00089449]
[1739954983059,0.8016885,95891.0,95890.0,0.00089449]
[1739954983524,0.8030795,95891.0,95890.0,0.00089449]
[1739954983939,0.3078525,95891.0,95890.0,0.00089449]
[1739954984357,0.7788945,95891.0,95890.0,0.00089449]
[1739954984927,0.5796245,95891.0,95890.0,0.00089449]
[1739954986816,0.3760418,95891.0,95890.0,0.00089449]
[1739954987019,0.3770418,95891.0,95890.0,0.00089449]
[1739954987334,0.3760418,95891.0,95890.0,0.00089449]
[1739954987551,0.39238948,95891.0,95890.0,0.00089449]
[1739954987743,0.27704448,95891.0,95890.0,0.00089449]
[1739954988181,1.76059248,95891.0,95890.0,0.00189449]
[1739954988473,1.72924148,95891.0,95890.0,0.00189449]
[1739954989018,1.60052348,95891.0,95890.0,0.00189449]
[1739954989823,1.56917248,95891.0,95890.0,0.00189449]
[1739954992870,0.2606968,95891.0,95890.0,0.00189449]
[1739954993066,0.2606968,95891.0,95890.0,0.07939449]
[1739954993271,0.2606968,95891.0,95890.0,0.09720163]
[1739954993882,0.0004255,95891.0,95890.0,0.09720163]
[1739954994054,0.1568525,95891.0,95890.0,0.09720163]
[1739954995957,0.17319924,95891.0,95890.0,0.09720163]
[1739955000329,0.01677224,95891.0,95890.0,0.09720163]
[1739955000680,0.01717224,95891.0,95890.0,0.09720163]
[1739955002177,0.17359924,95891.0,95890.0,0.09720163]
[1739955002772,0.01717224,95891.0,95890.0,0.09720163]
[1739955002963,0.01717224,95891.0,95890.0,0.29903063]
[1739955003166,0.0008255,95891.0,95890.0,0.29903063]
[1739955006630,0.01717184,95891.0,95890.0,0.29903063]
[1739955012569,0.01717184,95891.0,95890.0,0.32203063]
[1739955012991,0.0008255,95891.0,95890.0,0.32203063]
[1739955013567,0.0008255,95891.0,95890.0,0.32103063]
[1739955013769,0.0008255,95891.0,95890.0,0.32503063]
[1739955013965,0.0008255,95891.0,95890.0,0.32103063]
[1739955014443,0.0008255,95891.0,95890.0,0.32603063]
[1739955015023,0.0008255,95891.0,95890.0,0.42853428]
[1739955016003,0.01717025,95891.0,95890.0,0.42353428]
[1739955016476,0.01817025,95891.0,95890.0,0.43053428]
[1739955018495,0.01817025,95891.0,95890.0,0.75513428]
[1739955018695,0.01817025,95891.0,95890.0,0.75004653]
[1739955022471,0.0018255,95891.0,95890.0,0.75004653]
[1739955025690,0.01817037,95891.0,95890.0,0.75004653]
[1739955027570,0.01817037,95891.0,95890.0,0.74996798]
[1739955033190,0.0018255,95891.0,95890.0,0.74996798]
[1739955036254,0.01817004,95891.0,95890.0,0.74996798]
[1739955043267,0.0018255,95891.0,95890.0,0.74996798]
[1739955046659,0.01816998,95891.0,95890.0,0.74996798]
[1739955053102,0.16042587,95906.0,95891.0,0.023]
[1739955053301,0.015895,97048.0,95893.0,0.023]
[1739955053511,0.156405,95905.0,95896.0,0.208559]
[1739955053719,0.156405,95905.0,95900.0,0.023]
[1739955054137,0.156405,95905.0,95902.0,0.023]
[1739955054413,0.156403,95906.0,95902.0,0.023]
[1739955054643,0.156403,95906.0,95903.0,0.01227184]
[1739955055670,0.01120268,95906.0,95903.0,0.01227184]
[1739955056024,0.156401,95907.0,95903.0,0.01227184]
[1739955056563,0.15,95912.0,95903.0,0.01227184]
[1739955056752,0.15,95912.0,95903.0,0.01527184]
[1739955057057,0.16126078,95912.0,95904.0,0.00243281]
[1739955057210,0.156404,95906.0,95904.0,0.00243281]
[1739955057415,0.208526,95911.0,95904.0,0.00243281]
[1739955057641,0.156401,95907.0,95903.0,0.003]
[1739955057846,0.17274833,95906.0,95899.0,0.179413]
[1739955058053,0.01634433,95906.0,95899.0,0.023]
[1739955058817,0.17274733,95906.0,95899.0,0.156413]
[1739955059220,0.17274733,95906.0,95901.0,0.023]
[1739955059794,0.17274733,95906.0,95903.0,0.001]
[1739955060001,0.17274733,95906.0,95901.0,0.023]
[1739955060397,0.17274733,95906.0,95901.0,0.025]
[1739955060600,0.17274733,95906.0,95901.0,0.023]
[1739955060805,0.17274733,95906.0,95902.0,0.00243336]
[1739955060945,0.17274733,95906.0,95903.0,0.002]
[1739955061149,0.01634433,95906.0,95904.0,0.00243281]
[1739955061377,0.156404,95905.0,95903.0,0.002]
[1739955061582,0.156404,95905.0,95904.0,0.01470456]
[1739955061795,0.17274733,95906.0,95904.0,0.01470456]
[1739955063114,0.156404,95905.0,95904.0,0.01470456]
[1739955063725,0.156404,95905.0,95904.0,0.01670456]
[1739955063865,0.156404,95905.0,95904.0,0.01470456]
[1739955064315,0.156404,95905.0,95904.0,0.01770456]
[1739955064540,0.156404,95905.0,95904.0,0.01470456]
[1739955064763,0.0004255,95907.0,95904.0,0.01470456]
[1739955064893,0.156404,95906.0,95904.0,0.01470456]
[1739955065091,0.156404,95906.0,95901.0,0.023]
[1739955065363,0.156404,95906.0,95905.0,0.0147042]
[1739955065498,0.156404,95906.0,95901.0,0.023]
[1739955065697,0.156404,95906.0,95905.0,0.0147042]
[1739955065900,0.156404,95905.0,95904.0,0.003]
[1739955066100,0.156404,95905.0,95901.0,0.023]
[1739955066298,0.156404,95905.0,95897.0,0.31105865]
[1739955066299,0.156404,95905.0,95898.0,0.023]
[1739955066507,0.17274842,95905.0,95901.0,0.003]
[1739955066960,0.17274842,95905.0,95898.0,0.179415]
[1739955067160,0.17274842,95905.0,95898.0,0.023]
[1739955067395,0.01634442,95905.0,95898.0,0.179415]
[1739955067784,0.17274842,95905.0,95904.0,0.003]
[1739955069187,0.17274842,95905.0,95898.0,0.023]
[1739955069575,0.17274842,95905.0,95900.0,0.023]
[1739955070004,0.01634442,95905.0,95904.0,0.003]
[1739955070219,0.17274842,95905.0,95904.0,0.003]
[1739955070346,0.17274842,95905.0,95898.0,0.023]
[1739955070546,0.17274842,95905.0,95898.0,0.026]
[1739955070849,0.17274842,95905.0,95900.0,0.023]
[1739955071760,0.156408,95903.0,95900.0,0.023]
[1739955071965,0.01634442,95905.0,95900.0,0.023]
[1739955072170,0.156406,95904.0,95900.0,0.023]
[1739955072721,0.156406,95904.0,95900.0,0.026]
[1739955073082,0.156406,95904.0,95902.0,0.023]
[1739955073525,0.156406,95904.0,95903.0,0.02543309]
[1739955074248,0.156405,95905.0,95903.0,0.02543309]
[1739955074968,0.15,95917.0,95903.0,0.02543309]
[1739955075166,0.208526,95911.0,95904.0,0.00104259]
[1739955075420,0.156403,95906.0,95903.0,0.02543309]
[1739955075622,0.156403,95906.0,95903.0,0.023]
[1739955075866,0.156403,95906.0,95904.0,0.01227175]
[1739955075992,0.156404,95905.0,95904.0,0.01227175]
[1739955076470,0.01634435,95906.0,95903.0,0.023]
[1739955076862,0.01634435,95906.0,95904.0,0.01470456]
[1739955077474,0.01634435,95906.0,95904.0,0.01770456]
[1739955079116,0.01634435,95906.0,95904.0,0.01470456]
[1739955079932,0.01634435,95906.0,95904.0,0.01770456]
[1739955080357,0.01634435,95906.0,95904.0,0.01470456]
[1739955080604,0.01634435,95906.0,95904.0,0.01770456]
[1739955081915,0.17274735,95906.0,95904.0,0.01470456]
[1739955082416,0.01634435,95906.0,95904.0,0.01470456]
[1739955082728,0.01634435,95906.0,95904.0,0.01770456]
[1739955083142,0.01634435,95906.0,95904.0,0.01470456]
[1739955083320,0.156401,95907.0,95904.0,0.01770456]
[1739955083717,0.156401,95907.0,95904.0,0.01470456]
[1739955083927,0.156401,95907.0,95904.0,0.01770456]
[1739955084822,0.156404,95906.0,95904.0,0.01770456]
[1739955084985,0.364934,95908.0,95904.0,0.01770456]
[1739955085185,0.156401,95907.0,95904.0,0.01770456]
[1739955085593,0.0004254,95906.0,95904.0,0.01770456]
[1739955085763,0.0004254,95906.0,95904.0,0.01470456]
[1739955086188,0.0004254,95906.0,95904.0,0.01670456]
[1739955086354,0.0004254,95906.0,95904.0,0.01470456]
[1739955086677,0.0004254,95906.0,95904.0,0.01670456]
[1739955086910,0.0004254,95906.0,95904.0,0.01470456]
[1739955087244,0.0004254,95906.0,95904.0,0.01770456]
[1739955087449,0.0004254,95906.0,95904.0,0.01470456]
[1739955088773,0.0004254,95906.0,95904.0,0.01770456]
[1739955089291,0.1568284,95906.0,95904.0,0.01470456]
[1739955089508,0.0004254,95906.0,95904.0,0.01770456]
[1739955089806,0.0004254,95906.0,95903.0,0.0008508]
[1739955090013,0.0004254,95906.0,95905.0,0.01365388]
[1739955090392,0.1568284,95906.0,95905.0,0.01365388]
[1739955090564,0.0004254,95906.0,95905.0,0.01365388]
[1739955092059,0.01676965,95906.0,95905.0,0.01365388]
[1739955092285,0.0004254,95906.0,95905.0,0.2745004]
[1739955092488,0.0004254,95906.0,95905.0,0.27345788]
[1739955092832,0.0004254,95906.0,95905.0,0.29603878]
[1739955093451,0.0004254,95906.0,95905.0,0.29303878]
[1739955094555,0.0004254,95906.0,95905.0,0.29803878]
[1739955095981,0.0004254,95906.0,95905.0,0.29303878]
[1739955096189,0.0004254,95906.0,95905.0,0.29703878]
[1739955096545,0.0004254,95906.0,95905.0,0.29303878]
[1739955096901,0.0004254,95906.0,95905.0,0.29803878]